bitfinex/quotes_ETHUSD_20220111
["timestamp","ask_amount","ask_price","bid_price","bid_amount"]
[1641864178095,0.0022737,3064.2,3063.9,0.471]
[1641864178541,0.00170527,3064.1,3063.9,0.471]
[1641864179038,0.00113685,3064.0,3063.9,0.471]
[1641864182988,2.30113685,3064.0,3063.9,0.471]
[1641864184192,0.00113685,3064.0,3063.9,0.471]
[1641864185850,2.40113685,3064.0,3063.9,0.471]
[1641864187040,0.00113685,3064.0,3063.9,0.471]
[1641864188143,2.775149,3064.0,3063.9,0.471]
[1641864191495,0.00113685,3064.0,3063.9,0.471]
[1641864191988,2.775149,3064.0,3063.9,0.471]
[1641864192590,0.00113685,3064.0,3063.9,0.471]
[1641864192789,2.30113685,3064.0,3063.9,0.471]
[1641864193441,0.00113685,3064.0,3063.9,0.471]
[1641864193842,2.775149,3064.0,3063.9,0.471]
[1641864194649,0.00113685,3064.0,3063.9,1.57682044]
[1641864195545,0.00113685,3064.0,3063.9,0.471]
[1641864195744,2.775149,3064.0,3063.9,0.471]
[1641864195949,6.07483643,3064.0,3063.6,0.00113685]
[1641864196244,0.81621,3063.9,3063.6,0.00113685]
[1641864196445,3.065867,3063.8,3063.6,0.00113685]
[1641864196649,3.882187,3063.8,3063.2,0.00341054]
[1641864196846,4.182187,3063.8,3063.2,0.00341054]
[1641864197293,4.182187,3063.8,3063.1,0.00397896]
[1641864197493,4.39221741,3063.7,3063.1,0.00397896]
[1641864197694,2.82184891,3063.6,3063.1,0.00397896]
[1641864197894,4.45452571,3063.6,3063.1,0.00397896]
[1641864199496,2.77401215,3063.5,3063.1,0.00397896]
[1641864200095,2.77401215,3063.5,3063.1,1.54260193]
[1641864200495,2.77401215,3063.5,3063.2,0.00341054]
[1641864201142,2.77401215,3063.5,3063.1,0.00397896]
[1641864201642,3.11135655,3063.5,3063.1,0.00397896]
[1641864202442,2.71928003,3063.4,3063.1,0.00397896]
[1641864202642,0.81633,3063.3,3063.1,0.00397896]
[1641864202847,1.6326224,3063.3,3063.1,0.00397896]
[1641864203243,2.77401215,3063.2,3063.1,0.00397896]
[1641864203646,2.77401215,3063.2,3063.1,1.77943684]
[1641864204696,2.77401215,3063.2,3063.1,7.58211582]
[1641864204890,2.77401215,3063.4,3063.1,7.58211582]
[1641864205090,2.77401215,3063.4,3063.1,7.59491112]
[1641864205290,1.61934211,3064.0,3063.2,0.00341054]
[1641864205490,1.61934211,3064.0,3063.3,0.471]
[1641864205491,0.00113685,3064.0,3063.3,0.471]
[1641864205891,0.00113685,3064.0,3063.4,1.26950552]
[1641864206090,0.00113685,3064.0,3063.5,0.471]
[1641864206490,0.00113685,3064.0,3063.6,0.00113685]
[1641864206491,2.77511476,3064.0,3063.6,0.00113685]
[1641864206793,2.77511476,3064.0,3063.8,1.3328423]
[1641864206994,2.77511476,3064.0,3063.9,1.29302584]
[1641864207192,0.00113685,3064.0,3063.9,1.29302584]
[1641864209341,2.77397791,3064.2,3063.9,1.29302584]
[1641864209739,0.00170527,3064.1,3063.9,1.29302584]
[1641864210142,0.00113685,3064.0,3063.9,1.29302584]
[1641864211145,0.00113685,3064.0,3063.8,0.471]
[1641864211546,0.00113685,3064.0,3063.6,0.00113685]
[1641864211743,4.37459357,3063.7,3063.6,0.00113685]
[1641864211943,0.37459357,3063.7,3063.1,0.00397896]
[1641864212201,0.37459357,3063.7,3063.5,1.38111811]
[1641864212202,1.19083787,3063.7,3063.5,1.38111811]
[1641864212598,1.19083787,3063.7,3063.6,0.00113685]
[1641864213197,0.37459357,3063.7,3063.6,0.00113685]
[1641864223095,0.67459357,3063.7,3063.6,0.00113685]
[1641864223745,0.67459357,3063.7,3063.3,0.00284212]
[1641864223944,1.49083357,3063.7,3063.3,0.00284212]
[1641864224145,0.8162338,3063.6,3063.3,0.00284212]
[1641864224445,0.3,3063.5,3063.3,0.00284212]
[1641864224948,0.8162338,3063.6,3063.3,0.00284212]
[1641864225644,2.80903883,3063.7,3063.3,0.00284212]
[1641864225844,1.19083357,3063.7,3063.3,0.00284212]
[1641864226044,1.49083357,3063.7,3063.3,0.00284212]
[1641864226248,2.68023357,3063.7,3063.3,0.00284212]
[1641864226447,2.28157992,3063.6,3063.3,0.00284212]
[1641864226749,1.63287,3063.5,3063.1,0.00397896]
[1641864226945,0.0816,3063.4,3063.1,0.00397896]
[1641864227202,1.69980526,3063.4,3063.1,0.00397896]
[1641864227607,2.99980526,3063.4,3063.1,0.00397896]
[1641864227801,4.63266526,3063.4,3063.1,0.00397896]
[1641864228001,6.3015364,3063.4,3063.1,0.00397896]
[1641864228401,4.91820526,3063.2,3063.1,0.00397896]
[1641864228603,6.29980526,3063.2,3063.1,0.00397896]
[1641864229204,9.07464821,3063.2,3063.1,0.00397896]
[1641864230706,9.89117362,3063.2,3063.1,0.00397896]
[1641864230949,3.8,3063.1,3063.0,10.55852323]
[1641864231149,3.8816,3063.1,3063.0,10.55852323]
[1641864231353,4.8816,3063.1,3063.0,10.55852323]
[1641864231548,3.8816,3063.1,3063.0,10.55852323]
[1641864231850,0.8980189,3063.1,3063.0,10.55852323]
[1641864232049,0.93155006,3063.1,3063.0,10.55852323]
[1641864232249,4.48509307,3063.1,3063.0,10.55852323]
[1641864232649,4.48509307,3063.1,3063.0,11.88309813]
[1641864232853,4.40349307,3063.1,3063.0,11.88309813]
[1641864233151,2.77484295,3063.1,3063.0,11.88309813]
[1641864236499,2.77484295,3063.4,3063.0,11.88309813]
[1641864236898,0.00113684,3063.3,3063.0,11.88309813]
[1641864238105,0.00113684,3063.3,3063.0,10.55852323]
[1641864238945,0.8162968,3063.2,3063.0,10.55852323]
[1641864239147,0.84967906,3063.2,3063.0,10.55852323]
[1641864239346,1.14967906,3063.2,3063.0,10.55852323]
[1641864239747,2.77484295,3063.1,3063.0,10.55852323]
[1641864242092,2.77484295,3063.1,3063.0,11.96200407]
[1641864242293,2.77484295,3063.1,3063.0,11.91200407]
[1641864244797,0.00113684,3063.3,3063.0,11.91200407]
[1641864245197,0.00113684,3063.3,3063.1,1.35295363]
[1641864246542,0.00113684,3063.3,3063.2,7.500612]
[1641864246943,0.00113684,3063.3,3063.2,8.500612]
[1641864247244,7.979e-05,3063.5,3063.3,3.85]
[1641864247543,1.62865012,3063.9,3063.6,0.81589]
[1641864247742,5.012e-05,3063.9,3063.7,7.76617181]
[1641864247943,4.16848975,3064.2,3063.8,2.97105202]
[1641864248245,0.00397897,3064.0,3063.9,0.471]
[1641864248447,0.00397897,3064.0,3063.9,3.32266071]
[1641864248648,2.44971028,3064.6,3064.4,1.40150204]
[1641864248845,2.44971028,3064.6,3064.4,1.87250204]
[1641864249046,3.2438795,3064.8,3064.4,2.17250204]
[1641864249047,0.00682109,3064.5,3064.4,2.17250204]
[1641864254642,0.00682109,3064.5,3064.4,0.471]
[1641864256045,0.00682109,3064.5,3064.4,0.771]
[1641864258504,0.00682109,3064.5,3064.4,0.471]
[1641864260207,0.00682109,3064.5,3064.0,1.12372985]
[1641864260407,0.00682109,3064.5,3064.0,1.59472985]
[1641864260604,0.82223676,3064.4,3064.0,1.89472985]
[1641864260857,1.12223676,3064.4,3064.0,1.59472985]
[1641864261048,0.00568424,3064.3,3063.3,0.471]
[1641864261252,0.81618,3064.2,3063.3,0.471]
[1641864261451,0.3,3064.1,3063.3,0.471]
[1641864261650,0.00454739,3064.1,3063.3,0.471]
[1641864262148,0.00454739,3064.1,3063.4,1.16323252]
[1641864262549,0.00454739,3064.1,3063.5,0.471]
[1641864262748,0.00454739,3064.1,3064.0,1.52288165]
[1641864263552,0.00454739,3064.1,3064.0,2.64661984]
[1641864266699,0.00454739,3064.1,3064.0,3.97641984]
[1641864267098,0.00454739,3064.1,3064.0,5.27641984]
[1641864268106,0.00454739,3064.1,3064.0,8.28460947]
[1641864268350,0.00454739,3064.1,3064.0,5.27641984]
[1641864270346,0.00454739,3064.1,3064.0,8.26056233]
[1641864271546,0.00454739,3064.1,3064.0,5.27641984]
[1641864272199,0.00454739,3064.1,3064.0,1.59473819]
[1641864278846,0.00454739,3064.1,3064.0,1.89473819]
[1641864279701,0.00454739,3064.1,3064.0,4.71744486]
[1641864280099,0.00454739,3064.1,3064.0,5.71744486]
[1641864280297,0.00454739,3064.1,3064.0,6.59094486]
[1641864281398,0.00454739,3064.1,3064.0,5.71744486]
[1641864281799,0.00454739,3064.1,3064.0,2.89473819]
[1641864282199,0.00454739,3064.1,3064.0,1.89473819]
[1641864282400,0.00454739,3064.1,3064.0,2.89473819]
[1641864282801,0.00454739,3064.1,3064.0,2.59473819]
[1641864283744,0.00454739,3064.1,3064.0,5.75141622]
[1641864284045,0.00454739,3064.1,3064.0,5.83300622]
[1641864284444,0.00454739,3064.1,3064.0,2.97632819]
[1641864284844,0.00454739,3064.1,3064.0,2.67632819]
[1641864285046,0.00454739,3064.1,3064.0,2.89473819]
[1641864290523,0.00454739,3064.1,3064.0,3.71050819]
[1641864293150,0.3,3064.9,3064.0,3.71050819]
[1641864293350,0.3,3064.9,3064.1,1.0]
[1641864293551,0.3,3064.9,3064.2,0.471]
[1641864293552,0.30909478,3064.9,3064.2,0.471]
[1641864293751,0.30909478,3064.9,3064.2,0.46622206]
[1641864293952,2.77360775,3064.8,3064.2,0.46622206]
[1641864294352,0.00795793,3064.7,3064.2,0.46622206]
[1641864294795,0.00738951,3064.6,3064.2,0.46622206]
[1641864295198,0.00682109,3064.5,3064.2,0.46622206]
[1641864295595,0.00625266,3064.4,3064.2,0.46622206]
[1641864295895,0.00568424,3064.3,3064.2,0.46622206]
[1641864296295,2.77929199,3064.3,3064.2,0.46622206]
[1641864297098,0.00568424,3064.3,3064.2,0.46622206]
[1641864297703,2.77929199,3064.3,3064.2,0.46622206]
[1641864298353,0.00568424,3064.3,3064.2,0.46622206]
[1641864298545,0.00568424,3064.3,3064.2,3.47033002]
[1641864298945,2.77926559,3064.3,3064.2,4.68876002]
[1641864299150,2.67926559,3064.3,3064.2,4.68876002]
[1641864299547,2.01613488,3065.4,3065.3,1.38830596]
[1641864299946,2.31613488,3065.4,3065.3,1.38830596]
[1641864300545,2.26613488,3065.4,3065.3,1.38830596]
[1641864301548,0.63177861,3065.4,3065.3,1.38830596]
[1641864302095,2.26613488,3065.4,3065.3,1.38830596]
[1641864302696,0.63177861,3065.4,3065.3,1.38830596]
[1641864303896,2.26613488,3065.4,3065.3,1.38830596]
[1641864304096,2.26613488,3065.4,3065.0,0.471]
[1641864304298,2.26613488,3065.4,3064.6,0.471]
[1641864304299,2.9623763,3065.3,3064.6,0.471]
[1641864304496,2.9623763,3065.3,3064.2,6.3328]
[1641864304497,0.81584,3065.2,3064.2,6.3328]
[1641864304704,0.81584,3065.2,3064.2,0.471]
[1641864304705,3.53752655,3065.1,3064.2,0.471]
[1641864304899,3.54207394,3065.1,3064.2,0.471]
[1641864305098,0.00397896,3065.0,3064.2,0.471]
[1641864305298,0.00397896,3065.0,3064.3,1.27306338]
[1641864305601,0.00341054,3064.9,3064.3,1.27306338]
[1641864305849,0.81931224,3064.9,3064.3,1.27306338]
[1641864306043,2.85019374,3064.8,3064.3,1.27306338]
[1641864306244,3.15019374,3064.8,3064.3,1.27306338]
[1641864306445,0.00227369,3064.7,3064.3,1.27306338]
[1641864306844,0.00170527,3064.6,3064.3,1.27306338]
[1641864307144,0.00113685,3064.5,3064.3,1.27306338]
[1641864307546,0.00227369,3064.7,3064.3,1.27306338]
[1641864307950,0.00170527,3064.6,3064.3,1.27306338]
[1641864308345,0.00113685,3064.5,3064.3,1.27306338]
[1641864308849,0.00227369,3064.7,3064.3,1.27306338]
[1641864309146,0.00170527,3064.6,3064.3,1.27306338]
[1641864309599,0.00113685,3064.5,3064.3,1.27306338]
[1641864310002,0.00227369,3064.7,3064.3,1.27306338]
[1641864310305,2.81265843,3065.0,3064.4,0.471]
[1641864310306,0.00170527,3064.6,3064.4,0.471]
[1641864310501,0.00170527,3064.6,3064.4,0.771]
[1641864310704,0.00113685,3064.5,3064.4,0.771]
[1641864311502,0.00113685,3064.5,3064.4,1.5866]
[1641864311903,0.00113685,3064.5,3064.4,2.5866]
[1641864312504,0.00113685,3064.5,3064.4,14.71629113]
[1641864312905,0.00113685,3064.5,3064.4,47.61307739]
[1641864313763,0.00113685,3064.5,3064.4,47.69465739]
[1641864314759,0.00113685,3064.5,3064.4,66.79465739]
[1641864314957,0.00113685,3064.5,3064.4,47.69465739]
[1641864315362,0.00113685,3064.5,3064.4,66.79465739]
[1641864315558,1.2087,3065.7,3064.5,5.2]
[1641864315759,5.53245627,3065.8,3065.1,0.81545]
[1641864315961,0.00625265,3065.6,3065.2,0.471]
[1641864316358,0.00568423,3065.5,3065.3,1.53059934]
[1641864316558,0.00568423,3065.5,3065.4,1.91611402]
[1641864316758,1.63435627,3065.9,3065.4,1.91611402]
[1641864316962,1.63435627,3065.9,3065.4,2.91611402]
[1641864317198,0.0073895,3065.8,3065.4,2.91611402]
[1641864317598,0.00682108,3065.7,3065.4,3.73149402]
[1641864317999,0.00625265,3065.6,3065.4,3.73149402]
[1641864318398,0.00568423,3065.5,3065.4,3.73149402]
[1641864318800,0.00568423,3065.5,3065.4,6.56354921]
[1641864319002,0.00568423,3065.5,3065.4,6.86354921]
[1641864319609,2.7785025,3065.5,3065.4,4.03149402]
[1641864320853,0.00568423,3065.5,3065.4,4.03149402]
[1641864321548,2.77847845,3065.5,3065.4,4.03149402]
[1641864322147,0.00568423,3065.5,3065.4,4.03149402]
[1641864322350,0.00568423,3065.5,3065.4,6.82832976]
[1641864322851,0.9312737,3066.2,3065.4,12.71232976]
[1641864323051,0.9312737,3066.2,3066.0,0.81512]
[1641864323248,0.9312737,3066.2,3066.1,0.471]
[1641864323447,1.63435627,3066.4,3066.2,5.2]
[1641864323651,1.63435627,3066.4,3066.3,6.221]
[1641864323847,1.63435627,3066.8,3066.3,6.521]
[1641864324052,0.00511581,3066.4,3066.3,7.3361]
[1641864324249,0.00511581,3066.4,3066.3,10.29830794]
[1641864325596,0.00511581,3066.4,3066.3,13.13550848]
[1641864327998,0.00511581,3066.4,3066.3,8.38550848]
[1641864328198,0.00511581,3066.4,3066.3,7.57040848]
[1641864328850,0.00511581,3066.4,3066.3,7.27040848]
[1641864329549,0.00511581,3066.4,3066.3,7.35193848]
[1641864329747,0.00511581,3066.4,3066.3,7.65193848]
[1641864330347,0.00511581,3066.4,3066.3,4.81473794]
[1641864330749,0.00511581,3066.4,3066.3,4.73320794]
[1641864330946,0.00511581,3066.4,3066.3,1.99836145]
[1641864331548,0.81542,3066.9,3066.3,1.99836145]
[1641864331749,5.03721581,3067.2,3066.3,1.99836145]
[1641864331951,0.00397897,3067.1,3066.3,1.99836145]
[1641864332195,0.00397897,3067.1,3066.7,1.22207636]
[1641864332398,0.00341054,3067.0,3066.8,0.471]
[1641864332693,0.00284212,3066.9,3066.8,0.471]
[1641864334197,0.00284212,3066.9,3066.8,9.46818322]
[1641864334397,0.00284212,3066.9,3066.8,9.96458322]
[1641864334602,0.00284212,3066.9,3066.8,11.26458322]
[1641864334998,0.00284212,3066.9,3066.8,8.4514]
[1641864335699,0.00284212,3066.9,3066.8,7.655]
[1641864337863,0.00284212,3066.9,3066.8,7.355]
[1641864338067,0.00284212,3066.9,3066.8,6.355]
[1641864339896,0.00284212,3066.9,3066.8,7.355]
[1641864342701,0.00284212,3066.9,3066.8,7.655]
[1641864343744,0.00284212,3066.9,3066.8,7.7365]
[1641864344742,0.00284212,3066.9,3066.8,7.655]
[1641864347599,0.00284212,3066.9,3066.8,9.28486]
[1641864348802,0.00284212,3066.9,3066.8,12.07701494]
[1641864349199,0.00284212,3066.9,3066.8,9.28486]
[1641864350853,1.2324,3067.6,3067.5,0.8149131]
[1641864351246,0.32834698,3068.0,3067.5,1.1149131]
[1641864351447,2.77130473,3067.6,3067.5,1.1149131]
[1641864351848,2.77130473,3067.6,3067.5,1.5859131]
[1641864352050,0.00568423,3067.9,3067.5,3.03631383]
[1641864352051,2.77698896,3067.9,3067.5,3.03631383]
[1641864352351,0.00511581,3067.8,3067.7,1.4460781]
[1641864352651,0.00511581,3067.8,3067.7,2.2170781]
[1641864353051,2.77642054,3067.8,3067.7,2.2170781]
[1641864357702,2.77642054,3067.8,3067.7,0.771]
[1641864357902,2.77642054,3067.8,3067.5,1.45040073]
[1641864358101,0.81514,3067.7,3067.5,1.45040073]
[1641864358351,0.81968739,3067.7,3067.5,1.45040073]
[1641864358550,5.20397896,3067.6,3067.0,0.471]
[1641864358948,0.00341054,3067.5,3067.0,0.471]
[1641864359349,5.2,3067.6,3067.0,0.471]
[1641864359350,0.00284212,3067.4,3067.0,0.471]
[1641864359749,0.00227369,3067.3,3067.0,0.771]
[1641864360152,0.00170527,3067.2,3067.1,1.21174398]
[1641864362696,0.00170527,3067.2,3067.1,2.21174398]
[1641864362896,0.00170527,3067.2,3067.1,1.21174398]
[1641864363099,0.00170527,3067.2,3067.1,2.21174398]
[1641864363396,0.00170527,3067.2,3067.1,1.68274398]
[1641864363597,0.00170527,3067.2,3067.1,2.68274398]
[1641864363795,0.00170527,3067.2,3067.1,1.68274398]
[1641864363996,0.00170527,3067.2,3067.1,2.68274398]
[1641864364397,0.00170527,3067.2,3067.1,1.68274398]
[1641864364598,0.00170527,3067.2,3067.1,2.68274398]
[1641864364798,0.00170527,3067.2,3067.1,1.68274398]
[1641864365196,0.00170527,3067.2,3067.1,2.68274398]
[1641864365397,0.00170527,3067.2,3067.1,1.68274398]
[1641864365602,0.00170527,3067.2,3067.1,0.471]
[1641864365878,4.00170527,3067.2,3067.1,0.471]
[1641864366967,6.77301,3067.2,3067.1,0.471]
[1641864368366,2.77301,3067.2,3067.1,0.471]
[1641864368565,2.77301,3067.2,3067.1,0.771]
[1641864369167,2.77301,3067.2,3067.1,1.071]
[1641864369594,0.00170527,3067.2,3067.1,0.471]
[1641864371098,0.00170527,3067.2,3067.1,0.771]
[1641864372797,0.00170527,3067.2,3067.1,0.471]
[1641864374350,0.00170527,3067.2,3066.5,0.771]
[1641864374549,0.00170527,3067.2,3066.5,0.3]
[1641864374752,0.00113685,3067.1,3066.6,0.00170527]
[1641864375152,0.00170527,3067.2,3066.7,1.22377262]
[1641864375351,1.63435627,3067.0,3066.7,1.22377262]
[1641864375652,1.63435627,3067.0,3066.8,0.3]
[1641864376449,1.63549312,3067.1,3066.8,0.3]
[1641864377095,2.77130473,3066.9,3066.8,0.3]
[1641864377895,4.40679785,3067.1,3066.8,0.3]
[1641864378500,2.77130473,3066.9,3066.8,0.3]
[1641864378895,2.77130473,3066.9,3066.7,1.52377262]
[1641864379296,0.00113685,3067.1,3066.7,1.52377262]
[1641864379900,2.77130473,3066.8,3066.7,1.52377262]
[1641864380298,2.77130473,3066.8,3066.7,1.52490947]
[1641864380698,2.77244158,3067.1,3066.7,1.99590947]
[1641864380956,2.77244158,3067.1,3066.8,0.3]
[1641864381161,2.77244158,3067.1,3066.9,0.471]
[1641864381358,2.77244158,3067.1,3066.9,0.771]
[1641864381557,0.00113685,3067.1,3066.9,0.771]
[1641864385000,0.00113685,3067.1,3066.9,0.471]
[1641864387001,2.77244158,3067.1,3066.9,0.471]
[1641864387299,2.77244158,3067.1,3067.0,1.42793963]
[1641864388352,0.00113685,3067.1,3067.0,1.42793963]
[1641864390956,0.00113685,3067.1,3067.0,1.89893963]
[1641864391152,0.00113685,3067.1,3067.0,2.49893963]
[1641864391555,0.00113685,3067.1,3067.0,3.49893963]
[1641864392603,0.00113685,3067.1,3067.0,1.89893963]
[1641864392803,0.00113685,3067.1,3067.0,0.471]
[1641864394303,0.00113685,3067.1,3067.0,0.771]
[1641864398853,0.00113685,3067.1,3067.0,0.471]
[1641864399706,0.00113685,3067.1,3067.0,0.771]
[1641864403104,0.00113685,3067.1,3066.7,0.00113685]
[1641864403354,0.81649685,3067.1,3066.7,0.00113685]
[1641864403554,1.99829685,3067.1,3066.5,0.00227369]
[1641864403757,1.18293685,3067.1,3066.1,0.00454739]
[1641864403952,0.81544,3066.7,3066.1,0.00454739]
[1641864404152,0.81544,3066.7,3066.2,1.44921326]
[1641864404358,0.81544,3066.7,3066.2,1.74921326]
[1641864404552,0.81544,3066.7,3066.3,0.00341054]
[1641864404752,1.63088,3066.7,3066.3,0.00341054]
[1641864405156,2.77130473,3066.6,3066.3,0.00341054]
[1641864405354,2.77130473,3066.6,3066.3,0.30341054]
[1641864405554,2.77130473,3066.6,3066.1,0.00454739]
[1641864405756,2.77130473,3066.6,3066.4,0.00284212]
[1641864405954,2.77130473,3066.6,3066.1,0.00454739]
[1641864407900,3.15,3066.5,3066.0,2.063678]
[1641864408100,3.1522737,3066.5,3066.0,2.063678]
[1641864409300,2.77130473,3066.4,3066.0,0.72554739]
[1641864409504,3.58676473,3066.4,3066.0,0.72554739]
[1641864409701,0.00113685,3066.3,3066.0,0.72554739]
[1641864409900,0.00113685,3066.3,3066.0,1.02554739]
[1641864410501,0.00113685,3066.3,3066.2,1.44433623]
[1641864410702,2.77244158,3066.3,3066.2,1.44433623]
[1641864410948,2.77244158,3066.3,3066.2,1.74433623]
[1641864411548,0.00113685,3066.3,3066.2,1.74433623]
[1641864411949,2.77244158,3066.3,3066.2,1.74433623]
[1641864412752,0.00113685,3066.3,3066.2,1.74433623]
[1641864413151,3.48459424,3066.7,3066.0,0.471]
[1641864413354,4.70241473,3066.6,3065.7,6.7809]
[1641864413550,3.49337968,3066.5,3066.1,0.00113685]
[1641864414051,1.63435627,3066.4,3066.1,0.00113685]
[1641864414250,3.26547627,3066.4,3066.1,0.00113685]
[1641864414450,2.75363198,3066.3,3066.1,0.00113685]
[1641864414708,3.56923198,3066.3,3065.9,0.0022737]
[1641864415705,2.77130473,3066.2,3065.9,0.0022737]
[1641864417406,2.72130473,3066.2,3065.9,0.0022737]
[1641864417608,0.81552,3066.3,3065.9,0.0022737]
[1641864417806,4.44405447,3066.5,3065.9,0.0022737]
[1641864418007,2.44978627,3066.5,3065.9,0.0022737]
[1641864418209,1.63435627,3066.5,3066.0,0.471]
[1641864418453,1.63435627,3066.5,3066.1,0.815286]
[1641864418653,1.63435627,3066.5,3066.2,0.771]
[1641864418854,0.00170527,3066.6,3066.3,1.42822701]
[1641864421253,0.81543,3066.5,3066.3,1.42822701]
[1641864421654,0.00170527,3066.6,3066.3,1.42822701]
[1641864422507,0.81538,3066.5,3066.2,0.771]
[1641864423601,0.81538,3066.5,3066.3,1.49678025]
[1641864427960,0.00170527,3066.6,3066.3,1.49678025]
[1641864428154,0.00170527,3066.6,3066.4,0.471]
[1641864428354,0.00170527,3066.6,3066.4,6.355]
[1641864428554,0.00170527,3066.6,3066.4,7.655]
[1641864429254,0.00170527,3066.6,3066.5,1.17853815]
[1641864429455,0.00170527,3066.6,3066.5,1.64953815]
[1641864432902,0.00170527,3066.6,3066.5,2.48023815]
[1641864433106,0.00170527,3066.6,3066.5,3.48023815]
[1641864435767,0.00170527,3066.6,3066.5,3.78023815]
[1641864436169,0.00170527,3066.6,3066.5,3.86175815]
[1641864437805,2.73817457,3067.2,3066.6,5.2]
[1641864438007,2.73817457,3067.2,3067.1,5.26205535]
[1641864438205,2.73817457,3067.2,3067.1,6.36705535]
[1641864438206,2.74158511,3067.2,3067.1,6.36705535]
[1641864438407,2.8978,3067.4,3067.2,2.2]
[1641864438604,2.8978,3067.4,3067.3,6.355]
[1641864438805,2.8978,3067.4,3067.3,8.13375628]
[1641864439004,2.89893685,3067.4,3067.3,8.43375628]
[1641864439204,2.89893685,3067.4,3067.3,10.24855628]
[1641864439906,2.89893685,3067.4,3067.3,8.7698]
[1641864440104,2.89893685,3067.4,3067.3,7.655]
[1641864440504,2.89893685,3067.4,3067.3,0.471]
[1641864442054,2.89893685,3067.4,3067.3,0.771]
[1641864443260,3.89893685,3067.4,3067.3,0.471]
[1641864443457,5.88973678,3067.4,3066.5,0.471]
[1641864443657,0.81531,3067.1,3066.5,0.471]
[1641864443857,0.81531,3067.1,3066.6,0.00341054]
[1641864444057,0.3,3067.0,3066.6,0.00341054]
[1641864444257,1.63066,3066.9,3066.6,0.00341054]
[1641864444710,0.81532,3066.8,3066.6,0.00341054]
[1641864445305,1.71585627,3067.2,3066.6,0.00341054]
[1641864445506,1.63435627,3067.2,3066.6,0.00341054]
[1641864446106,1.63043,3067.3,3066.6,0.00341054]
[1641864446606,3.51663633,3067.2,3066.6,0.00341054]
[1641864446807,1.63063,3067.1,3066.6,0.00341054]
[1641864447007,3.20136037,3067.0,3066.6,0.00341054]
[1641864447208,3.50136037,3067.0,3066.4,0.00454739]
[1641864447408,0.81539,3066.8,3066.2,0.00568424]
[1641864448554,0.81539,3066.6,3066.2,0.00568424]
[1641864448753,0.3,3066.7,3066.2,0.00568424]
[1641864448953,0.3,3067.0,3066.3,0.471]
[1641864449152,0.3,3067.0,3066.8,1.16280151]
[1641864449353,0.3,3067.0,3066.8,1.63380151]
[1641864449555,5.35726,3067.5,3066.8,1.63380151]
[1641864449556,3.58114199,3067.7,3067.2,5.25]
[1641864449754,2.31252505,3068.2,3067.4,5.25]
[1641864449953,10.06081208,3069.6,3068.1,5.89653022]
[1641864450156,10.06081208,3069.6,3069.5,0.01257474]
[1641864450157,4.93357476,3069.6,3069.5,0.01257474]
[1641864450352,3.25895,3070.7,3069.6,3.7]
[1641864450556,0.130666,3070.9,3069.7,0.471]
[1641864450756,10.17036363,3070.8,3070.4,0.01233875]
[1641864450955,4.00750912,3070.6,3070.4,1.25913875]
[1641864451160,0.01762112,3070.5,3070.4,1.25913875]
[1641864451553,0.01762112,3070.5,3070.4,1.2468]
[1641864452207,0.09904112,3070.5,3070.4,0.7758]
[1641864452507,1.5152849,3069.9,3069.4,0.471]
[1641864452707,0.08143,3070.4,3069.4,0.471]
[1641864452906,0.01364216,3069.8,3069.4,0.471]
[1641864453106,1.64560428,3070.3,3069.7,1.36679527]
[1641864453309,2.44382,3070.6,3069.7,1.36679527]
[1641864453310,0.8146,3069.8,3069.7,1.36679527]
[1641864453507,0.8146,3069.8,3069.1,0.471]
[1641864453709,0.8146,3069.8,3069.1,0.771]
[1641864454507,0.8146,3069.8,3069.2,1.47263442]
[1641864454909,0.8146,3069.8,3069.1,0.771]
[1641864455109,0.3,3069.7,3069.1,0.471]
[1641864455309,4.31364737,3069.7,3068.7,0.471]
[1641864455509,4.31364737,3069.7,3068.5,0.01217588]
[1641864455510,0.01250531,3069.6,3068.5,0.01217588]
[1641864455954,0.01193689,3069.5,3068.7,1.53850537]
[1641864456357,0.01136847,3069.4,3068.7,1.53850537]
[1641864456753,1.62948,3069.2,3068.5,0.01217588]
[1641864456956,0.3,3069.1,3068.5,0.01217588]
[1641864457158,3.39436405,3069.1,3068.5,0.01217588]
[1641864457456,0.00909477,3069.0,3068.5,0.01217588]
[1641864457958,0.00909477,3069.0,3068.6,1.54321539]
[1641864457959,0.00852635,3068.9,3068.6,1.54321539]
[1641864458354,0.00795792,3068.8,3068.6,1.84321539]
[1641864458755,0.0073895,3068.7,3068.6,0.3]
[1641864459156,0.0073895,3068.7,3068.5,0.39363588]
[1641864459357,0.0073895,3068.7,3068.5,0.09363588]
[1641864459605,0.00682108,3068.6,3068.5,0.09363588]
[1641864459906,0.00852635,3068.6,3068.5,0.09363588]
[1641864460907,0.00852635,3068.6,3068.5,0.01217588]
[1641864461708,0.00852635,3068.6,3068.5,3.71217588]
[1641864461911,0.00852635,3068.6,3068.5,3.79363588]
[1641864462111,0.00852635,3068.6,3068.5,4.79363588]
[1641864462309,0.00852635,3068.6,3068.5,1.08146]
[1641864462509,0.00852635,3068.6,3068.5,0.08146]
[1641864463680,0.00852635,3068.6,3068.5,2.33146]
[1641864464084,0.00852635,3068.6,3068.5,3.33146]
[1641864464683,0.00852635,3068.6,3068.5,1.08146]
[1641864464883,0.00852635,3068.6,3068.4,0.771]
[1641864464884,0.00852635,3068.6,3068.4,0.471]
[1641864465083,1.08812635,3068.6,3067.8,0.0121701]
[1641864465285,0.00625265,3068.5,3067.3,0.21965997]
[1641864465486,0.00625265,3068.5,3067.3,0.13819997]
[1641864465783,0.00568423,3068.4,3067.3,0.13819997]
[1641864465984,0.00568423,3068.4,3067.4,0.08149]
[1641864466183,0.6792,3068.6,3067.3,0.13819997]
[1641864466184,0.00511581,3068.3,3067.3,0.21966997]
[1641864466385,0.00511581,3068.3,3067.3,0.13819997]
[1641864466687,0.81961738,3068.2,3067.3,0.13819997]
[1641864466884,1.63468738,3068.2,3067.3,0.13819997]
[1641864467106,0.30397896,3068.1,3067.6,1.11052044]
[1641864467309,0.00397896,3068.1,3067.6,1.11052044]
[1641864467508,0.00341054,3068.0,3067.6,1.41052044]
[1641864467908,0.00284211,3067.9,3067.7,0.08149]
[1641864468310,0.00227369,3067.8,3067.7,0.08149]
[1641864468708,0.00227369,3067.8,3067.7,2.83149]
[1641864469110,0.00227369,3067.8,3067.7,4.13149]
[1641864470309,0.00227369,3067.8,3067.7,5.41078864]
[1641864470711,0.00227369,3067.8,3067.7,12.705033]
[1641864470965,0.00227369,3067.8,3067.7,11.34512026]
[1641864471162,2.0578912,3069.5,3067.8,5.3]